bitfinex/quotes_SOLUSD_20230103
["timestamp","ask_amount","ask_price","bid_price","bid_amount"]
[1672759309522,30.0,12.615,12.589,20.0]
[1672759310051,70.5369,12.614,12.589,20.0]
[1672759310257,30.0,12.613,12.59,30.0]
[1672759310665,30.0,12.613,12.591,20.0]
[1672759311316,30.0,12.613,12.59,30.0]
[1672759311530,102.2242,12.613,12.591,20.0]
[1672759313314,100.0,12.61,12.591,20.0]
[1672759313502,30.0,12.609,12.591,20.0]
[1672759315199,30.0,12.609,12.589,3.643]
[1672759317623,30.0,12.609,12.589,3.143]
[1672759319595,100.0,12.61,12.589,3.143]
[1672759320882,30.0,12.609,12.589,3.143]
[1672759321399,100.0,12.61,12.59,30.0]
[1672759321611,100.0,12.61,12.592,30.0]
[1672759321821,100.0,12.61,12.592,163.24166022]
[1672759322048,100.0,12.61,12.594,30.0]
[1672759322256,100.0,12.61,12.595,85.19574792]
[1672759323103,100.0,12.61,12.594,135.01172204]
[1672759323318,100.0,12.61,12.595,30.0]
[1672759324151,30.0,12.609,12.596,20.0]
[1672759324468,30.0,12.609,12.584,145.3484]
[1672759324469,108.88,12.61,12.588,139.96816799]
[1672759324659,100.0,12.61,12.59,30.0]
[1672759324875,100.0,12.61,12.588,139.96816799]
[1672759325086,30.0,12.609,12.588,139.96816799]
[1672759325510,30.0,12.609,12.589,33.143]
[1672759325723,30.0,12.609,12.6,8.92]
[1672759325950,30.0,12.609,12.6,44.55]
[1672759326152,100.0,12.61,12.6,44.55]
[1672759326349,100.0,12.61,12.59,8.88]
[1672759326562,30.0,12.609,12.59,8.88]
[1672759326773,30.0,12.609,12.6,8.9]
[1672759327213,30.0,12.609,12.6,44.58]
[1672759327522,30.0,12.609,12.6,8.95]
[1672759328347,30.0,12.609,12.591,136.19014102]
[1672759328557,100.0,12.61,12.59,44.48]
[1672759328558,100.0,12.61,12.59,8.9]
[1672759328994,30.0,12.613,12.589,3.143]
[1672759329210,59.52,12.612,12.589,3.143]
[1672759329520,132.998,12.614,12.59,8.92]
[1672759329921,30.0,12.617,12.6,8.92]
[1672759330355,30.0,12.619,12.6,8.92]
[1672759330773,89.49,12.619,12.593,6.4327448]
[1672759330975,50.06014092,12.62,12.59,8.98]
[1672759331186,30.0,12.618,12.59,8.98]
[1672759331525,59.5,12.617,12.59,8.98]
[1672759331707,30.0,12.618,12.6,8.92]
[1672759332442,30.0,12.618,12.601,20.0]
[1672759333816,11.14014092,12.62,12.601,20.0]
[1672759334022,11.14014092,12.62,12.603,8.47053611]
[1672759334228,11.14014092,12.62,12.605,8.47053611]
[1672759334445,11.14014092,12.62,12.606,20.0]
[1672759334797,11.14014092,12.62,12.6,8.91]
[1672759336436,11.14014092,12.62,12.601,59.58]
[1672759336652,11.14014092,12.62,12.603,30.0]
[1672759336981,11.14014092,12.62,12.604,9.50363211]
[1672759337715,11.14014092,12.62,12.595,23.138]
[1672759338439,11.14014092,12.62,12.59,8.98]
[1672759338766,71.8019,12.619,12.6,8.92]
[1672759338980,30.0,12.618,12.6,8.92]
[1672759340652,30.0,12.618,12.601,20.0]
[1672759341921,30.0,12.618,12.6,8.93]
[1672759342114,30.0,12.618,12.59,44.66]
[1672759342329,30.48491781,12.617,12.59,8.98]
[1672759342749,30.48491781,12.617,12.6,8.92]
[1672759342960,30.48491781,12.615,12.6,8.92]
[1672759343171,30.48491781,12.615,12.6,44.52]
[1672759343386,71.7962,12.617,12.61,8.92]
[1672759343595,11.14014092,12.62,12.61,8.92]
[1672759344220,11.14014092,12.62,12.611,20.0]
[1672759344433,11.14014092,12.62,12.612,30.0]
[1672759344637,11.14014092,12.62,12.613,20.0]
[1672759344857,11.14014092,12.62,12.614,30.0]
[1672759345081,11.14014092,12.62,12.615,20.0]
[1672759345298,11.14014092,12.62,12.613,20.0]
[1672759346124,11.14014092,12.62,12.611,20.0]
[1672759346325,11.14014092,12.62,12.612,30.0]
[1672759346543,11.14014092,12.62,12.613,20.0]
[1672759347169,11.14014092,12.62,12.611,20.0]
[1672759349480,11.14014092,12.62,12.604,20.0]
[1672759349916,11.14014092,12.62,12.6,8.91]
[1672759350869,11.14014092,12.62,12.602,30.0]
[1672759351058,11.14014092,12.62,12.603,20.0]
[1672759351602,11.14014092,12.62,12.595,30.0]
[1672759352210,11.14014092,12.62,12.596,59.6]
[1672759352654,30.0,12.619,12.595,59.6]
[1672759352960,1.15896044,12.618,12.596,30.0]
[1672759353163,30.0,12.619,12.6,8.92]
[1672759353365,30.0,12.619,12.601,20.0]
[1672759354002,30.0,12.619,12.59,8.98]
[1672759354214,32.84140345,12.618,12.59,8.98]
[1672759354443,30.0,12.615,12.59,8.98]
[1672759354641,32.84140345,12.614,12.59,8.98]
[1672759354842,32.84140345,12.612,12.591,59.62]
[1672759355051,32.84140345,12.612,12.592,30.0]
[1672759355288,32.84140345,12.612,12.593,59.61]
[1672759355468,30.0,12.615,12.595,30.0]
[1672759355679,71.4975,12.616,12.6,8.92]
[1672759355904,71.4975,12.616,12.601,59.58]
[1672759356120,71.4975,12.616,12.603,30.0]
[1672759356315,24.4942,12.616,12.602,20.0]
[1672759358311,24.4942,12.616,12.601,20.0]
[1672759358531,24.4942,12.616,12.602,59.57]
[1672759358737,24.4942,12.616,12.603,30.0]
[1672759358948,24.4942,12.616,12.601,59.58]
[1672759359372,24.4942,12.616,12.602,30.0]
[1672759359578,24.4942,12.616,12.603,59.57]
[1672759359803,24.4942,12.616,12.599,59.58]
[1672759359992,24.4942,12.616,12.601,30.0]
[1672759360203,11.14014092,12.62,12.602,79.57]
[1672759360413,11.14014092,12.62,12.603,30.0]
[1672759360629,11.14014092,12.62,12.605,30.0]
[1672759360837,11.14014092,12.62,12.604,79.56]
[1672759360838,100.0,12.615,12.606,20.0]
[1672759361077,11.14014092,12.62,12.604,20.0]
[1672759361380,11.14014092,12.62,12.602,59.57]
[1672759361381,30.0,12.619,12.606,30.0]
[1672759361688,11.14014092,12.62,12.607,59.55]
[1672759362220,11.14014092,12.62,12.602,59.57]
[1672759362526,11.14014092,12.62,12.598,131.377]
[1672759362741,11.14014092,12.62,12.6,8.92]
[1672759362937,11.14014092,12.62,12.602,30.0]
[1672759363471,111.14014092,12.62,12.604,30.0]
[1672759363794,111.14014092,12.62,12.61,8.92]
[1672759364632,119.736,12.63,12.611,20.0]
[1672759365052,30.0,12.64,12.611,79.53]
[1672759365259,38.88,12.64,12.611,20.0]
[1672759365458,59.4,12.638,12.603,59.57]
[1672759365675,118.0703,12.63,12.6,8.94]
[1672759366424,126.9903,12.63,12.6,8.94]
[1672759366637,126.9903,12.63,12.598,116.4581]
[1672759366825,162.6803,12.63,12.598,116.4581]
[1672759367033,162.6803,12.63,12.599,30.0]
[1672759367454,162.6803,12.63,12.6,8.92]
[1672759367687,126.9703,12.63,12.6,44.6]
[1672759367886,126.9703,12.63,12.602,30.0]
[1672759368088,118.0703,12.63,12.602,30.0]
[1672759368633,118.0703,12.63,12.603,20.0]
[1672759368855,30.0,12.629,12.61,8.92]
[1672759369064,30.0,12.629,12.611,20.0]
[1672759369240,30.0,12.629,12.601,89.58]
[1672759369454,30.0,12.629,12.6,68.49]
[1672759369781,30.0,12.629,12.6,59.58]
[1672759370000,30.0,12.629,12.599,59.58]
[1672759370204,30.0,12.629,12.6,30.0]
[1672759370400,30.0,12.629,12.6,38.92]
[1672759370720,30.0,12.629,12.602,30.0]
[1672759370931,30.0,12.629,12.603,20.0]
[1672759371141,30.0,12.629,12.602,30.0]
[1672759371556,30.0,12.629,12.604,30.0]
[1672759371769,30.0,12.629,12.605,59.56]
[1672759372084,30.0,12.629,12.604,30.0]
[1672759372722,30.0,12.629,12.602,89.57]
[1672759372941,30.0,12.629,12.603,20.0]
[1672759373150,30.0,12.629,12.602,20.0]
[1672759374096,30.0,12.629,12.6,20.0]
[1672759374506,30.0,12.629,12.602,30.0]
[1672759374710,30.0,12.629,12.603,20.0]
[1672759375567,30.0,12.629,12.601,20.0]
[1672759376071,30.0,12.629,12.601,79.58]
[1672759376513,30.0,12.629,12.602,30.0]
[1672759376810,30.0,12.629,12.601,79.58]
[1672759377021,30.0,12.629,12.602,30.0]
[1672759377235,100.0,12.62,12.603,79.57]
[1672759377550,30.0,12.619,12.604,20.0]
[1672759377759,30.0,12.619,12.605,59.56]
[1672759377968,30.0,12.619,12.606,20.0]
[1672759378179,30.0,12.619,12.604,20.0]
[1672759378622,30.0,12.619,12.602,20.0]
[1672759378838,30.0,12.619,12.603,59.57]
[1672759379033,30.0,12.619,12.604,20.0]
[1672759379770,30.0,12.619,12.603,79.57]
[1672759380519,30.0,12.619,12.603,20.0]
[1672759380728,15.3521351,12.618,12.603,20.0]
[1672759380917,15.3521351,12.618,12.6,20.0]
[1672759381129,15.3521351,12.618,12.601,59.58]
[1672759381348,15.3521351,12.618,12.602,20.0]
[1672759381551,30.0,12.619,12.602,20.0]
[1672759381771,6.62818087,12.618,12.602,20.0]
[1672759381987,6.62818087,12.618,12.601,79.58]
[1672759382401,30.0,12.619,12.601,79.58]
[1672759382611,1.1950775,12.618,12.602,30.0]
[1672759382823,30.0,12.619,12.603,79.57]
[1672759384295,30.0,12.619,12.603,20.0]
[1672759384492,2.40920421,12.618,12.593,20.0]
[1672759384832,2.40920421,12.618,12.594,30.0]
[1672759385034,30.0,12.619,12.595,79.6]
[1672759385250,30.0,12.619,12.595,59.6]
[1672759385440,30.0,12.619,12.594,30.0]
[1672759385767,30.0,12.619,12.595,59.6]
[1672759386086,30.0,12.619,12.596,30.0]
[1672759386296,30.0,12.619,12.598,30.0]
[1672759386694,30.0,12.619,12.597,59.59]
[1672759387968,30.0,12.619,12.593,59.61]
[1672759388177,30.0,12.619,12.594,20.0]
[1672759388392,30.0,12.619,12.596,30.0]
[1672759388711,30.0,12.619,12.597,79.59]
[1672759389129,30.0,12.619,12.597,20.0]
[1672759389536,30.0,12.619,12.595,79.6]
[1672759389957,8.92,12.61,12.595,79.6]
[1672759390289,8.92,12.61,12.595,20.0]
[1672759390496,44.58,12.61,12.581,89.67]
[1672759390816,30.0,12.608,12.583,30.0]
[1672759391022,30.0,12.608,12.584,59.66]
[1672759391023,36.64209648,12.607,12.584,59.66]
[1672759391227,36.64209648,12.615,12.584,59.66]
[1672759391433,36.64209648,12.613,12.585,30.0]
[1672759391659,36.64209648,12.611,12.587,30.0]
[1672759391863,36.64209648,12.611,12.588,59.64]
[1672759392074,30.0,12.61,12.588,59.64]
[1672759392293,30.0,12.61,12.589,30.0]
[1672759392478,30.0,12.61,12.59,79.63]
[1672759392810,30.0,12.61,12.591,30.0]
[1672759393029,30.0,12.61,12.592,79.62]
[1672759393955,38.88,12.61,12.581,30.0]
[1672759394176,28.97093501,12.609,12.584,113.642]
[1672759394403,100.0,12.62,12.6,8.92]
[1672759394705,100.0,12.62,12.601,59.58]
[1672759395228,100.0,12.62,12.602,30.0]
[1672759395426,100.0,12.62,12.603,79.57]
[1672759395642,30.0,12.619,12.603,20.0]
[1672759396474,100.0,12.62,12.604,59.56]
[1672759396685,30.0,12.619,12.605,20.0]
[1672759397012,30.0,12.619,12.606,59.55]
[1672759397205,30.0,12.619,12.607,20.0]
[1672759397420,30.0,12.619,12.605,20.0]
[1672759397630,30.0,12.619,12.602,59.57]
[1672759397947,30.0,12.619,12.593,119.2601]
[1672759398273,100.0,12.62,12.6,8.92]
[1672759398487,100.0,12.62,12.601,59.58]
[1672759399099,30.0,12.619,12.602,20.0]
[1672759399325,30.0,12.619,12.597,20.0]
[1672759399541,30.0,12.619,12.595,20.0]
[1672759400067,30.0,12.619,12.594,111.4223]
[1672759400277,30.0,12.619,12.595,30.0]
[1672759400489,30.0,12.619,12.596,59.6]
[1672759400692,30.0,12.619,12.596,30.0]
[1672759400891,30.0,12.619,12.595,59.6]
[1672759401317,30.0,12.619,12.596,30.0]
[1672759401521,30.0,12.619,12.597,59.59]
[1672759402268,30.0,12.619,12.598,20.0]
[1672759402474,30.0,12.619,12.597,20.0]
[1672759402672,30.0,12.619,12.596,20.0]
[1672759403203,30.0,12.619,12.597,30.0]
[1672759403427,30.0,12.619,12.596,20.0]
[1672759403428,30.0,12.619,12.598,79.59]
[1672759403645,30.0,12.619,12.599,20.0]
[1672759404354,30.0,12.619,12.595,79.6]
[1672759404567,30.0,12.619,12.596,30.0]
[1672759404775,30.0,12.619,12.597,20.0]
[1672759404985,30.0,12.619,12.598,59.59]
[1672759405198,30.0,12.619,12.599,20.0]
[1672759406049,30.0,12.619,12.597,30.0]
[1672759406261,30.0,12.619,12.598,79.59]
[1672759406684,30.0,12.619,12.599,30.0]
[1672759406890,30.0,12.627,12.6,88.5]
[1672759407107,30.0,12.627,12.602,30.0]
[1672759407419,30.0,12.627,12.603,170.7943]
[1672759407630,30.0,12.627,12.604,20.0]
[1672759407839,30.0,12.627,12.605,59.56]
[1672759408247,8.92,12.62,12.593,59.61]
[1672759408447,30.0,12.627,12.594,30.0]
[1672759409099,30.0,12.627,12.596,30.0]
[1672759409290,8.89,12.62,12.597,59.59]
[1672759409504,8.89,12.62,12.594,59.61]
[1672759410134,30.0,12.627,12.595,30.0]
[1672759410455,8.92,12.62,12.596,59.6]
[1672759410669,8.92,12.62,12.594,59.61]
[1672759410996,30.0,12.619,12.594,59.61]
[1672759411306,8.92,12.61,12.593,111.2243]
[1672759411515,8.92,12.61,12.594,59.11]
[1672759411720,30.0,12.617,12.594,30.0]
[1672759411925,30.0,12.617,12.594,89.61]
[1672759412654,30.0,12.617,12.594,59.61]
[1672759413071,30.0,12.617,12.595,20.0]
[1672759413300,30.0,12.617,12.596,59.6]
[1672759413703,30.0,12.617,12.594,59.61]
[1672759413917,30.0,12.617,12.595,30.0]
[1672759414144,30.0,12.617,12.596,59.6]
[1672759414546,30.0,12.617,12.597,30.0]
[1672759414757,30.0,12.617,12.598,59.59]
[1672759414976,30.0,12.625,12.6,30.0]
[1672759415198,30.0,12.625,12.601,191.654]
[1672759415816,8.92,12.62,12.601,191.654]
[1672759416137,44.6,12.62,12.601,191.654]
[1672759416336,30.0,12.619,12.601,132.074]
[1672759416548,30.0,12.619,12.601,112.074]
[1672759417184,8.91,12.61,12.601,112.074]
[1672759417389,8.91,12.61,12.587,112.074]
[1672759417598,8.91,12.61,12.588,59.14]
[1672759417925,30.0,12.628,12.59,8.92]
[1672759418123,30.0,12.628,12.591,89.62]
[1672759418448,30.0,12.628,12.6,8.92]
[1672759418651,30.0,12.628,12.601,192.9012]
[1672759419373,8.91,12.62,12.601,192.9012]
[1672759419590,44.66,12.62,12.592,59.62]
[1672759419800,44.66,12.62,12.592,113.3212]
[1672759420126,30.0,12.619,12.594,30.0]
[1672759420336,30.0,12.619,12.595,59.6]
[1672759420531,30.0,12.619,12.593,59.61]
[1672759420747,30.0,12.619,12.594,30.0]
[1672759420957,30.0,12.619,12.595,59.6]
[1672759421407,30.0,12.626,12.595,59.6]
[1672759421587,30.0,12.626,12.6,8.92]
[1672759421914,30.0,12.626,12.601,59.58]
[1672759422119,30.0,12.626,12.602,108.5398]
[1672759422327,30.0,12.626,12.603,79.57]
[1672759422547,30.0,12.626,12.604,30.0]
[1672759422737,30.0,12.626,12.605,59.56]
[1672759422950,30.0,12.626,12.606,20.0]
[1672759423270,30.0,12.626,12.607,59.55]
[1672759423493,30.0,12.626,12.608,20.0]
[1672759423705,30.0,12.626,12.609,59.54]
[1672759423933,30.0,12.626,12.61,20.0]
[1672759424235,30.0,12.626,12.609,59.54]
[1672759424449,30.0,12.626,12.61,20.0]
[1672759425074,30.0,12.626,12.605,20.0]
[1672759425285,30.0,12.626,12.606,59.55]
[1672759425478,30.0,12.627,12.609,30.0]
[1672759425695,30.0,12.627,12.61,79.03]
[1672759425906,30.0,12.627,12.611,35.81908133]
[1672759426114,30.0,12.627,12.612,59.52]
[1672759426339,30.0,12.627,12.611,59.53]
[1672759426654,8.88,12.62,12.61,19.5]
[1672759426967,8.88,12.62,12.605,59.56]
[1672759427162,8.88,12.62,12.603,59.57]
[1672759427590,30.0,12.627,12.603,59.57]
[1672759428206,8.92,12.62,12.597,59.59]
[1672759428415,8.92,12.62,12.595,59.6]
[1672759428861,8.92,12.62,12.597,30.0]
[1672759429061,8.92,12.62,12.598,59.59]
[1672759429600,8.92,12.62,12.597,59.09]
[1672759430115,30.0,12.627,12.598,30.0]
[1672759430327,30.0,12.627,12.599,59.58]
[1672759430523,30.0,12.627,12.6,30.0]
[1672759430735,30.0,12.627,12.601,59.58]
[1672759430939,30.0,12.627,12.603,30.0]
[1672759431149,30.0,12.627,12.604,195.8685]
[1672759432444,30.0,12.628,12.604,195.8685]
[1672759432642,30.0,12.628,12.605,30.0]
[1672759432855,30.0,12.63,12.606,123.20823982]
[1672759433043,30.0,12.63,12.607,30.0]
[1672759433253,30.0,12.63,12.608,125.00626568]
[1672759433462,30.0,12.63,12.609,30.0]
[1672759433688,30.0,12.63,12.61,133.21385733]
[1672759433895,30.0,12.637,12.611,30.0]
[1672759434105,30.0,12.637,12.612,145.15254589]
[1672759434305,30.0,12.637,12.612,259.66304589]
[1672759434728,30.0,12.637,12.612,125.15254589]
[1672759434937,30.0,12.637,12.606,114.5105]
[1672759435147,30.0,12.629,12.607,125.18254589]
[1672759435467,30.0,12.629,12.607,59.55]
[1672759436004,30.0,12.633,12.608,30.0]
[1672759436227,30.0,12.633,12.609,117.51323566]
[1672759436442,30.0,12.633,12.61,30.0]
[1672759436633,30.0,12.633,12.612,30.0]
[1672759436839,30.0,12.633,12.613,128.11998817]
[1672759437061,100.0,12.62,12.613,128.11998817]
[1672759437268,100.0,12.62,12.613,79.52]
[1672759438102,100.0,12.62,12.609,59.54]
[1672759438423,100.0,12.62,12.607,59.55]
[1672759438835,100.0,12.62,12.608,30.0]
[1672759439050,100.0,12.62,12.609,59.54]
[1672759439480,100.0,12.62,12.61,30.0]
[1672759439694,100.0,12.62,12.611,79.53]
[1672759441069,30.0,12.619,12.611,20.0]
[1672759441253,100.0,12.62,12.612,59.52]
[1672759441466,100.0,12.62,12.613,20.0]
[1672759441687,100.0,12.62,12.614,89.51]
[1672759441904,100.0,12.62,12.615,20.0]
[1672759442105,100.0,12.62,12.616,59.5]
[1672759442318,100.0,12.62,12.617,20.0]
[1672759442641,100.0,12.62,12.618,59.5]
[1672759442833,100.0,12.62,12.619,20.0]
[1672759443042,100.0,12.62,12.617,20.0]
[1672759443466,100.0,12.62,12.611,20.0]
[1672759443703,100.0,12.62,12.612,59.52]
[1672759444308,100.0,12.62,12.611,19.5]
[1672759444523,100.0,12.62,12.607,59.55]
[1672759444843,30.0,12.629,12.61,8.92]
[1672759445043,30.0,12.633,12.611,79.53]
[1672759445370,30.0,12.64,12.611,79.53]
[1672759445568,30.0,12.64,12.612,30.0]
[1672759445776,30.0,12.64,12.613,196.5321]
[1672759446737,30.0,12.64,12.613,176.5321]
[1672759446934,149.8788,12.638,12.613,176.5321]
[1672759447149,30.0,12.638,12.613,176.5321]
[1672759447352,30.0,12.638,12.614,30.0]
[1672759447579,30.0,12.638,12.615,59.51]
[1672759448102,30.0,12.638,12.614,59.01]
[1672759448526,30.0,12.638,12.62,8.92]
[1672759448839,30.0,12.638,12.621,79.48]
[1672759450508,30.0,12.638,12.621,20.0]
[1672759450722,28.5,12.637,12.622,59.48]
[1672759450921,28.5,12.637,12.623,20.0]
[1672759451132,28.5,12.637,12.624,59.47]
[1672759451357,28.5,12.637,12.625,20.0]
[1672759451574,28.5,12.637,12.63,8.92]
[1672759451881,28.5,12.637,12.631,19.5]
[1672759452093,30.0,12.644,12.631,19.5]
[1672759452518,30.0,12.658,12.633,48.26028754]
[1672759452918,30.0,12.658,12.627,48.26028754]
[1672759453133,30.0,12.658,12.628,79.45]
[1672759453344,30.0,12.658,12.629,48.26028754]
[1672759453553,30.0,12.658,12.631,30.0]
[1672759453765,30.0,12.658,12.632,127.69028754]
[1672759454286,30.0,12.658,12.632,79.43]
[1672759454497,29.5,12.647,12.632,79.43]
[1672759456711,29.5,12.647,12.632,20.0]
[1672759456929,29.5,12.647,12.625,20.0]
[1672759457133,100.0,12.629,12.626,59.46]
[1672759457344,29.5,12.647,12.627,20.0]
[1672759457553,29.5,12.647,12.628,59.45]
[1672759457764,29.5,12.647,12.629,20.0]
[1672759458091,29.5,12.647,12.629,19.5]
[1672759458297,29.5,12.647,12.63,59.44]
[1672759458722,29.5,12.647,12.629,19.5]
[1672759458917,29.5,12.647,12.628,116.6279]
[1672759458918,88.515233,12.647,12.628,116.6279]
[1672759460610,88.515233,12.647,12.629,20.0]
[1672759460820,88.515233,12.647,12.628,116.6279]
[1672759462063,88.515233,12.647,12.629,20.0]
[1672759462819,88.515233,12.647,12.618,59.5]
[1672759463020,88.515233,12.647,12.618,113.8026]
[1672759463235,88.515233,12.647,12.62,30.0]
[1672759463433,88.515233,12.647,12.622,30.0]
[1672759463645,59.015233,12.647,12.623,59.47]
[1672759463884,30.0,12.646,12.624,30.0]
[1672759464059,30.0,12.646,12.625,193.2626]
[1672759464270,30.0,12.646,12.626,30.0]
[1672759464490,30.0,12.646,12.628,30.0]
[1672759464703,30.0,12.646,12.629,79.44]
[1672759465125,30.0,12.646,12.629,20.0]
[1672759465444,30.0,12.646,12.627,19.5]
[1672759465644,30.0,12.646,12.629,30.0]
[1672759465852,30.0,12.646,12.63,59.44]
[1672759466294,30.0,12.646,12.627,19.5]
[1672759466295,30.0,12.646,12.628,59.45]
[1672759466598,30.0,12.646,12.629,30.0]
[1672759466793,59.015233,12.647,12.63,59.44]
[1672759467006,59.015233,12.647,12.631,30.0]
[1672759467232,59.015233,12.647,12.632,79.43]
[1672759467449,30.0,12.646,12.632,59.43]
[1672759467635,30.0,12.646,12.633,20.0]
[1672759467844,30.0,12.646,12.634,59.42]
[1672759468061,30.0,12.646,12.635,20.0]
[1672759468273,59.015233,12.647,12.636,59.41]
[1672759468485,59.015233,12.647,12.637,20.0]
[1672759468699,30.0,12.646,12.637,20.0]
[1672759469227,30.0,12.653,12.638,59.4]
[1672759469444,30.0,12.653,12.639,20.0]
[1672759469866,30.0,12.649,12.639,20.0]
[1672759470180,30.0,12.649,12.633,20.0]
[1672759470395,30.0,12.649,12.634,59.42]
[1672759470599,30.0,12.649,12.635,20.0]
[1672759470915,30.0,12.649,12.636,59.41]
[1672759471124,30.0,12.649,12.637,20.0]
[1672759471328,30.0,12.649,12.638,59.4]
[1672759471536,30.0,12.649,12.639,20.0]
[1672759472176,30.0,12.649,12.631,116.31627182]
[1672759472487,30.0,12.649,12.631,79.43]
[1672759473001,30.0,12.653,12.632,30.0]
[1672759473214,30.0,12.653,12.634,30.0]
[1672759473414,30.0,12.653,12.635,101.1679623]
[1672759473628,30.0,12.649,12.635,101.1679623]
[1672759473857,30.0,12.649,12.633,59.42]
[1672759474283,30.0,12.649,12.634,30.0]
[1672759474503,30.0,12.649,12.635,59.42]
[1672759474687,30.0,12.653,12.635,59.42]
[1672759474906,19.3901458,12.656,12.636,30.0]
[1672759475219,19.3901458,12.656,12.638,30.0]
[1672759475435,19.3901458,12.656,12.64,43.82684064]
[1672759475641,30.0,12.649,12.641,20.0]
[1672759475849,30.0,12.649,12.635,59.42]
[1672759476056,30.0,12.649,12.633,59.42]
[1672759476269,30.0,12.649,12.632,117.3281]
[1672759476465,30.0,12.649,12.633,59.42]
[1672759477115,30.0,12.649,12.632,117.3281]
[1672759477740,19.3901458,12.656,12.632,117.3281]
[1672759477937,19.3901458,12.656,12.633,89.42]
[1672759478797,19.3901458,12.656,12.634,20.0]
[1672759479010,30.0,12.649,12.635,59.42]
[1672759479214,30.0,12.649,12.632,117.3281]
[1672759480055,19.3901458,12.656,12.634,30.0]
[1672759480273,19.3901458,12.656,12.636,30.0]
[1672759480461,19.3901458,12.656,12.637,59.41]
[1672759480882,19.3901458,12.656,12.638,20.0]
[1672759481092,19.3901458,12.656,12.639,59.4]
[1672759481297,19.3901458,12.656,12.64,20.0]
[1672759481511,19.3901458,12.656,12.641,30.0]
[1672759481731,19.3901458,12.656,12.642,59.38]
[1672759481933,19.3901458,12.656,12.644,34.47175397]
[1672759482152,19.3901458,12.656,12.645,20.0]
[1672759482366,19.3901458,12.656,12.643,20.0]
[1672759483313,19.3901458,12.656,12.636,20.0]
[1672759483527,19.3901458,12.656,12.638,30.0]
[1672759483748,19.3901458,12.656,12.639,79.4]
[1672759484055,19.3901458,12.656,12.64,30.0]
[1672759484241,19.3901458,12.656,12.641,59.39]
[1672759484450,19.3901458,12.656,12.642,20.0]